fUSD/lending_fUSD_20240812
["ID","MTS","AMOUNT","RATE_DAILY","PERIOD"]
[334674280,1723461040678,-2969.1605649,0.000109,2]
[334674281,1723461040688,-2375.5794351,0.00011,2]
[334674282,1723461041139,-399.76119495,0.00011,2]
[334674283,1723461041151,-1783.63961969,0.00011,2]
[334674284,1723461041164,-1989.54326454,0.00011,2]
[334674285,1723461041177,-835869.49007601,0.00011,2]
[334674286,1723461041187,-751476.94550481,0.00011,2]
[334674287,1723461041198,-1198645.88082105,0.00011,2]
[334674288,1723461041207,-1000.0,0.00011,2]
[334674289,1723461041217,-1000.0,0.00011,2]
[334674290,1723461041228,-1000.0,0.00011,2]
[334674291,1723461041238,-1000.0,0.00011,2]
[334674292,1723461041250,-1024.39025951,0.00011,2]
[334674293,1723461041260,-4000275.18634776,0.00011,2]
[334674294,1723461041282,-865.63064836,0.00011,2]
[334674295,1723461041292,-313.0,0.00011,2]
[334674296,1723461041301,-179281.20565465,0.00011,2]
[334674297,1723461042388,-1620615.15618324,0.00011,2]
[334674298,1723461042401,-722291.66009202,0.00011,2]
[334674299,1723461042413,-344475.0874631,0.00011,2]
[334674300,1723461042430,-11802.9936195,0.00011,2]
[334674301,1723461042445,-487.43912,0.00011,2]
[334674302,1723461042502,581.13,8.219e-05,2]
[334674323,1723461043249,-581.13,0.00010475,2]
[334674324,1723461043259,-157.39258196,0.000109,2]
[334674325,1723461043277,-261.09174228,0.00011,2]
[334674326,1723461043312,-309.49181854,0.00011,2]
[334674340,1723461045901,-1074.0,0.00010804,2]
[334674341,1723461045911,-253.14949999,0.00011,2]
[334674342,1723461046005,-194.98,0.00010959,2]
[334674343,1723461046018,-2781.0101,0.00011,2]
[334674344,1723461046094,-5526.87186569,0.00011,2]
[334674345,1723461046105,-340.19546566,0.00011,2]
[334674346,1723461046189,-2658.36239262,0.00011,2]
[334674347,1723461046201,-11869.26920811,0.00011,2]
[334674352,1723461062132,500.0,8.22e-05,2]
[334674354,1723461070958,500.0,8.22e-05,2]
[334674355,1723461094800,500.0,8.22e-05,2]
[334674357,1723461095357,500.0,8.22e-05,2]
[334674361,1723461129271,791.13432577,8.22e-05,2]
[334674363,1723461214741,155.0,9.7e-05,2]
[334674364,1723461222522,790.91133081,8.22e-05,2]
[334674365,1723461314239,181.79,7.957e-05,2]
[334674366,1723461502574,607.97204529,9.645e-05,2]
[334674368,1723461691433,3098.2828,9.629e-05,2]
[334674370,1723461799070,699.66,8.219e-05,2]
[334674373,1723461830636,412.47,9.653e-05,2]
[334674379,1723461930031,1000.0,9.693e-05,2]
[334674380,1723461933814,966.65,9.693e-05,2]
[334674392,1723462038583,250.0,9.692e-05,2]
[334674408,1723462131343,42012.17933544,9.692e-05,2]
[334674409,1723462140293,1321.1837,9.628e-05,2]
[334674544,1723462232082,-300.0,9.691e-05,2]
[334674545,1723462232092,-300.0,9.691e-05,2]
[334674546,1723462232102,-1029.06500109,9.692e-05,2]
[334674547,1723462232114,-25224.9417892,9.692e-05,2]
[334674548,1723462232124,-171.46,9.728e-05,2]
[334674549,1723462232134,-200.0,9.733e-05,2]
[334674550,1723462232144,-216.65,9.735e-05,2]
[334674551,1723462232154,-10000.0,9.744e-05,2]
[334674552,1723462232163,-267.98,9.744e-05,2]
[334674553,1723462232174,-900.96,9.78e-05,2]
[334674554,1723462232183,-189.4,9.793e-05,2]
[334674555,1723462232193,-992.09,9.839e-05,2]
[334674556,1723462232203,-173.0,9.852e-05,2]
[334674557,1723462232213,-150.0,9.863e-05,2]
[334674558,1723462232222,-500.0,9.864e-05,2]
[334674560,1723462232232,-624.32539749,9.864e-05,2]
[334674562,1723462232241,-500.0,9.864e-05,2]
[334674563,1723462232255,-500.0,9.864e-05,2]
[334674564,1723462232264,-805.16,9.931e-05,2]
[334674565,1723462232274,-155.25686629,0.0001,2]
[334674566,1723462232284,-499.99,0.0001,2]
[334674567,1723462232293,-3647.0,0.0001,2]
[334674568,1723462232306,-3000.0,0.0001,2]
[334674569,1723462232315,-171.0,0.00010008,2]
[334674570,1723462232324,-162.36,0.00010032,2]
[334674571,1723462232334,-699.66,0.00010459,2]
[334674572,1723462232344,-420.0,0.0001066,2]
[334674573,1723462232358,-420.0,0.0001066,2]
[334674574,1723462232367,-2074.0139221,0.00010789,2]
[334674575,1723462232377,-12827.79675053,0.000108,2]
[334674576,1723462232387,-255.0,0.00010849,2]
[334674577,1723462232397,-47250.0,0.00010889,2]
[334674578,1723462232406,-1181.21329641,0.0001089,2]
[334674579,1723462232416,-4795.7583,0.00010892,2]
[334674580,1723462232426,-126.45352469,0.00010899,2]
[334674581,1723462232739,-5948.5595,0.00010899,2]
[334674582,1723462232752,-826.32428039,0.00010899,2]
[334674583,1723462232764,-1236.07781889,0.00010899,2]
[334674584,1723462232789,-3798.3477175,0.00010899,2]
[334674585,1723462232803,-1881.40812481,0.00010899,2]
[334674586,1723462232814,-2165.38925198,0.00010899,2]
[334674587,1723462232824,-500.0,0.000109,2]
[334674588,1723462232833,-3203.44967637,0.000109,2]
[334674589,1723462232845,-3580.32062363,0.000109,2]
[334674590,1723462232855,-1000.0,0.000109,2]
[334674591,1723462232865,-3966.97312252,0.000109,2]
[334674592,1723462232876,-563.10986677,0.000109,2]
[334674593,1723462232888,-4823.31881939,0.000109,2]
[334674594,1723462232904,-486.61826601,0.000109,2]
[334674595,1723462232916,-7001.98812531,0.000109,2]
[334674596,1723462232925,-493.199,0.000109,2]
[334674597,1723462232935,-2500.0,0.000109,2]
[334674598,1723462232944,-2074.01392211,0.000109,2]
[334674599,1723462232954,-329.59582458,0.000109,2]
[334674603,1723462238732,-394.76897542,0.000109,2]
[334674604,1723462238742,-165.62866386,0.000109,2]
[334674605,1723462238752,-1727.7352,0.000109,2]
[334674606,1723462238762,-1925.0,0.000109,2]
[334674607,1723462238771,-165.19422617,0.000109,2]
[334674608,1723462238780,-1000.0,0.00010905,2]
[334674609,1723462238790,-2000.0,0.00010959,2]
[334674610,1723462238800,-162.48,0.00010959,2]
[334674611,1723462238813,-812.43,0.00010959,2]
[334674612,1723462238822,-253.71,0.00010959,2]
[334674613,1723462238832,-250.0,0.00010959,2]
[334674614,1723462238841,-200.85316747,0.0001096,2]
[334674615,1723462238851,-155.0,0.0001096,2]
[334674616,1723462238861,-267.98,0.00010962,2]
[334674617,1723462238871,-200.0,0.00010973,2]
[334674618,1723462238880,-200.0,0.00010973,2]
[334674619,1723462238889,-200.0,0.00010973,2]
[334674620,1723462238899,-24608.88918445,0.0001099,3]
[334674621,1723462238911,-877.31189828,0.0001099,3]
[334674622,1723462238927,-994.70069747,0.0001099,3]
[334674623,1723462238943,-4235.30511142,0.0001099,3]
[334674624,1723462238955,-1165.26374629,0.0001099,3]
[334674652,1723462243141,-10153.22177372,0.0001099,3]
[334674653,1723462243152,-1527.76122534,0.0001099,3]
[334674654,1723462243164,-1515.41747107,0.0001099,3]
[334674655,1723462243175,-6278.1499185,0.0001099,3]
[334674656,1723462243185,-10942.58180466,0.00010996,2]
[334674657,1723462243195,-160.05579516,0.00010997,2]
[334674658,1723462243205,-744.420531,0.00010997,2]
[334674659,1723462243214,-361.56433294,0.00010997,2]
[334674660,1723462243224,-313.395679,0.00010997,2]
[334674661,1723462243233,-3584.054543,0.00010997,2]
[334674662,1723462243244,-4040.7825912,0.00010997,2]
[334674663,1723462243257,-150.01,0.00010999,2]
[334674664,1723462243267,-570.67745058,0.00010999,2]
[334674665,1723462243276,-176.82892239,0.00010999,2]
[334674666,1723462243287,-500.0,0.00010999,2]
[334674667,1723462243297,-500.0,0.00010999,2]
[334674668,1723462243306,-423.72665004,0.00010999,2]
[334674669,1723462243327,-500.0,0.00010999,2]
[334674670,1723462243338,-500.0,0.00010999,2]
[334674671,1723462243347,-210.97718399,0.00010999,2]
[334674672,1723462243356,-1000.0,0.00011,2]
[334674673,1723462243365,-1000.0,0.00011,2]
[334674674,1723462243376,-629.40424069,0.00011,2]
[334674680,1723462244455,-370.59575931,0.00011,2]
[334674681,1723462244466,-1000.0,0.00011,2]
[334674682,1723462244476,-761.36459449,0.00011,2]
[334674683,1723462244488,-238.63540551,0.00011,2]
[334674684,1723462244497,-505.28859449,0.00011,2]
[334674685,1723462244509,-494.71140551,0.00011,2]
[334674686,1723462244519,-1000.0,0.00011,2]
[334674687,1723462244529,-1000.0,0.00011,2]
[334674688,1723462244539,-1000.0,0.00011,2]
[334674689,1723462244548,-1000.0,0.00011,2]
[334674690,1723462244557,-1000.0,0.00011,2]
[334674691,1723462244567,-1000.0,0.00011,2]
[334674692,1723462244577,-1000.0,0.00011,2]
[334674693,1723462244586,-1000.0,0.00011,2]
[334674694,1723462244595,-1577.04896458,0.00011,2]
[334674695,1723462244635,-753.13233576,0.00011,2]
[334674696,1723462244646,-323483.51217128,0.00011,2]
[334674697,1723462244681,-2951.7197915,0.00011,2]
[334674698,1723462244691,-907.89412314,0.00011,2]
[334674699,1723462244707,-386.1841836,0.00011,2]
[334674700,1723462244722,-19430.92459693,0.00011,2]
[334674701,1723462244733,-14950.0,0.00011,2]
[334674702,1723462244745,-916.29696645,0.00011,2]
[334674709,1723462246132,-1138.65459664,0.00011,2]
[334674711,1723462246146,-1250.0945842,0.00011,2]
[334674714,1723462246157,-2218.84058109,0.00011,2]
[334674716,1723462246191,-523.22315315,0.00011,2]
[334674717,1723462246257,-1496.98004279,0.00011,2]
[334674718,1723462246268,-2985.27581436,0.00011,2]
[334674719,1723462246311,-8934.90773,0.00011,2]
[334674721,1723462259820,500.0,8.22e-05,2]
[334674722,1723462260027,500.0,8.22e-05,2]
[334674725,1723462306706,500.0,8.22e-05,2]
[334674726,1723462314435,765.45,8.454e-05,2]
[334674737,1723462345429,15485.224,9.591e-05,2]
[334674769,1723462576987,3476.90746831,9.65e-05,2]
[334674775,1723462786705,727.17,8.219e-05,2]
[334674776,1723462823689,1000.0,9e-05,2]
[334674777,1723462849325,1337.557901,9e-05,2]
[334674798,1723463347567,714.95,8.219e-05,2]
[334674822,1723463407106,13029.34,9.625e-05,2]
[334674823,1723463408351,400.0,9.625e-05,2]
[334674840,1723463432464,-385.0,9.682e-05,2]
[334674841,1723463432474,-118.60812554,9.683e-05,2]
[334674968,1723463438385,-57.33758219,9.683e-05,2]
[334674969,1723463438394,-625.65043291,9.683e-05,2]
[334674970,1723463438408,-1873.76763892,9.683e-05,2]
[334674971,1723463438420,-4816.18192817,9.683e-05,2]
[334674972,1723463438430,-883.41,9.706e-05,2]
[334674973,1723463438439,-600.0,9.732e-05,2]
[334674974,1723463438449,-13932.67390485,9.732e-05,2]
[334674975,1723463438458,-300.0,9.779e-05,2]
[334674976,1723463438468,-239.21,9.797e-05,2]
[334674977,1723463438477,-500.0,9.864e-05,2]
[334674978,1723463438486,-500.0,9.864e-05,2]
[334674979,1723463438496,-500.0,9.864e-05,2]
[334674980,1723463438505,-150.0,9.888e-05,2]
[334674981,1723463438514,-522.85661593,9.962e-05,2]
[334674982,1723463438523,-550.0,0.0001,2]
[334674983,1723463438532,-150.79,0.00010042,2]
[334674984,1723463438542,-150.79,0.0001005,2]
[334674985,1723463438551,-150.79,0.00010058,2]
[334674986,1723463438561,-499.99,0.00010058,2]
[334674987,1723463438570,-150.79,0.00010067,2]
[334674988,1723463438580,-150.99,0.00010067,2]
[334674989,1723463438589,-150.79,0.00010075,2]
[334674990,1723463438598,-150.79,0.00010083,2]
[334674991,1723463438608,-150.79,0.00010092,2]
[334674992,1723463438617,-714.95,0.00010456,2]
[334674993,1723463438627,-420.0,0.00010757,2]
[334674994,1723463438637,-150.0,0.00010799,2]
[334674995,1723463438646,-2192.59593557,0.000108,2]
[334674996,1723463438664,-10631.08988342,0.000108,2]
[334674997,1723463438674,-400.0,0.00010828,2]
[334674998,1723463438683,-491.6355,0.0001089,2]
[334674999,1723463438692,-2407.01675856,0.0001089,2]
[334675000,1723463438709,-2077.87520853,0.0001089,2]
[334675001,1723463438776,-9252.51363291,0.0001089,2]
[334675002,1723463438786,-1263.1383,0.000109,2]
[334675003,1723463438796,-15975.2394,0.000109,2]
[334675004,1723463438806,-349.02235909,0.000109,2]
[334675005,1723463438820,-165.62866385,0.000109,2]
[334675006,1723463438830,-157.39258195,0.000109,2]
[334675007,1723463438841,-538.13096832,0.000109,2]
[334675008,1723463438851,-201.71555854,0.00010909,2]
[334675009,1723463438862,-1257.5209126,0.00010909,2]
[334675010,1723463438873,-201.54280442,0.00010909,2]
[334675011,1723463438884,-155.10583963,0.00010909,2]
[334675012,1723463438895,-155.0,0.00010909,2]
[334675013,1723463438906,-600.0,0.00010948,2]
[334675014,1723463438915,-227.96,0.00010959,2]
[334675015,1723463438926,-200.0,0.00010973,2]
[334675016,1723463438936,-200.0,0.00010973,2]
[334675017,1723463438946,-200.0509084,0.00010995,2]
[334675018,1723463438955,-280.2098291,0.00010997,2]
[334675019,1723463438967,-719.68002878,0.00010997,2]
[334675020,1723463438978,-1391.2633306,0.00010997,2]
[334675021,1723463438988,-150.30944536,0.00010999,2]
[334675022,1723463438998,-25960.52737271,0.00011,2]
[334675023,1723463439014,-2997.89864005,0.00011,2]
[334675024,1723463439025,-1111.14398307,0.00011,2]
[334675025,1723463439036,-544.01346895,0.00011,2]
[334675026,1723463439047,-3238.23578972,0.00011,2]
[334675027,1723463439068,-862.96773864,0.00011,2]
[334675130,1723463440231,-298.385,0.00011,2]
[334675143,1723463440391,-791.93815995,0.00011,2]
[334675158,1723463440556,-124186.24102815,0.00011,2]
[334675160,1723463440570,-5005.93905,0.00011,2]
[334675170,1723463440672,-1685.57707386,0.00011,2]
[334675172,1723463440684,-2514.42292614,0.00011,2]
[334675174,1723463440696,-2021.77089504,0.00011,2]
[334675700,1723463446222,-4545.31242003,0.00011,2]
[334675702,1723463446233,-2994.7776,0.00011,2]
[334675705,1723463446249,-264.56933083,0.00011,2]
[334675710,1723463446287,-2584.80322748,0.00011,2]
[334675712,1723463446298,-855.65800931,0.00011,2]
[334675724,1723463446402,-390.67842279,0.00011,2]
[334675726,1723463446419,-916.71800022,0.00011,2]
[334675728,1723463446430,-5976.5,0.00011,2]
[334675737,1723463446509,-6053.38359258,0.00011,2]
[334675745,1723463446568,-3212.81595253,0.00011,2]
[334676573,1723463489995,500.0,8.22e-05,2]
[334676574,1723463490196,500.0,8.22e-05,2]
[334676575,1723463490300,417.2361987,8.22e-05,2]
[334676576,1723463526847,212.73354217,8.22e-05,2]
[334676577,1723463580627,400.0,9.582e-05,2]
[334676578,1723463628199,10000.0,9.563e-05,2]
[334676583,1723463877392,-180000.0,0.00011771,7]
[334676584,1723463897032,-13101.596665,0.00011771,7]
[334676585,1723463909694,750.05,8.219e-05,2]
[334676586,1723463912671,-11498.0,0.000112,5]
[334676587,1723463916723,-11498.0,0.000107,3]
[334676588,1723463921043,-1775.40863533,0.0001,2]
[334676589,1723463921069,-3159.52,0.00010059,2]
[334676590,1723463921089,-175.57,0.00010088,2]
[334676591,1723463921111,-200.0,0.00010101,2]
[334676592,1723463921133,-824.37,0.00010101,2]
[334676593,1723463921157,-300.0,0.00010119,2]
[334676594,1723463921179,-3290.85,0.0001012,2]
[334676595,1723463921203,-4186.18,0.00010138,2]
[334676596,1723463921225,-6093.0,0.000102,2]
[334676597,1723463921246,-250.0,0.00010476,2]
[334676598,1723463921267,-750.05,0.00010476,2]
[334676599,1723463921288,-178.44,0.00010554,2]
[334676600,1723463921314,-150.0,0.00010899,2]
[334676601,1723463921336,-4281.2893,0.000109,2]
[334676602,1723463921356,-7476.2555,0.000109,2]
[334676603,1723463921377,-260.4298,0.000109,2]
[334676604,1723463921399,-15474.5109,0.000109,2]
[334676605,1723463921418,-1000.0,0.000109,2]
[334676606,1723463921439,-15072.01639071,0.000109,2]
[334676607,1723463921459,-151.15,0.000109,2]
[334676608,1723463921479,-480.90256413,0.000109,2]
[334676609,1723463921499,-157.39258195,0.000109,2]
[334676610,1723463921653,-3043.95190206,0.000109,2]
[334676611,1723463921676,-234.76893918,0.000109,2]
[334676612,1723463921699,-250.0,0.00010959,2]
[334676613,1723463921722,-670.98,0.00010959,2]
[334676614,1723463921746,-200.0,0.00010973,2]
[334676615,1723463921768,-200.0,0.00010973,2]
[334676616,1723463921791,-1993.5306611,0.00010997,2]
[334676617,1723463921813,-402.2669628,0.00010997,2]
[334676618,1723463921834,-500.0,0.00010999,2]
[334676619,1723463921857,-171.36867353,0.00010999,2]
[334676620,1723463921879,-82046.20052421,0.00011,2]
[334676621,1723463922464,199.40331935,8.22e-05,2]
[334676622,1723463922902,500.0,8.22e-05,2]
[334676623,1723463925530,-500.0,9.864e-05,2]
[334676624,1723463925554,-168002.0,0.00011,2]
[334676629,1723464360036,675.04,8.297e-05,2]
[334676723,1723464632319,-550.0,0.0001,2]
[334676724,1723464632330,-191.37,0.00010009,2]
[334676725,1723464632339,-265.16873054,0.00010092,2]
[334676726,1723464632351,-34.83126946,0.00010092,2]
[334676727,1723464632360,-300.0,0.00010092,2]
[334676728,1723464632503,-7684.02831993,0.00010093,2]
[334676729,1723464632524,-5002.62606592,0.00010093,2]
[334676730,1723464632536,-11213.34561415,0.00010093,2]
[334676731,1723464632546,-240.0,0.00010103,2]
[334676732,1723464632556,-1462.11,0.00010118,2]
[334676733,1723464632566,-250.0,0.00010125,2]
[334676734,1723464632575,-158.2362994,0.00010211,2]
[334676735,1723464632585,-269.44,0.00010253,2]
[334676736,1723464632594,-208.63,0.00010311,2]
[334676737,1723464632604,-760.0,0.0001041,2]
[334676738,1723464632613,-675.04,0.0001056,2]
[334676739,1723464632623,-21756.0,0.0001073,2]
[334676740,1723464632634,-3790.193,0.0001073,2]
[334676741,1723464632643,-289.0,0.0001073,2]
[334676742,1723464632653,-411.368,0.0001073,2]
[334676743,1723464632663,-3000.0,0.0001089,2]
[334676744,1723464632673,-499.99,0.000109,2]
[334676746,1723464632683,-1511.2028,0.000109,2]
[334676748,1723464632693,-2500.0,0.000109,2]
[334676750,1723464632703,-448.84239316,0.000109,2]
[334676752,1723464632712,-156.51262612,0.000109,2]
[334676754,1723464632722,-13803.45555996,0.000109,2]
[334676756,1723464632732,-2029.30126804,0.000109,2]
[334676757,1723464632742,-1480.47,0.00010959,2]
[334676759,1723464632751,-367955.16103048,0.00011,2]
[334676762,1723464632763,-250035.73195037,0.00011,2]
[334676764,1723464632772,-31552.4452037,0.00011,2]
[334676767,1723464632791,-1790.6117704,0.00011,2]
[334676769,1723464632803,-3039.2149786,0.00011,2]
[334676771,1723464632814,-5069.18643519,0.00011,2]
[334676780,1723464638339,-5130.0,0.000109,2]
[334676782,1723464638349,-2446.43109401,0.00011,2]
[334676787,1723464638393,-2373.54469997,0.00011,2]
[334676789,1723464638405,-544.38170658,0.00011,2]
[334676797,1723464638656,-396.96142203,0.00011,2]
[334676832,1723464639147,-58933.06183339,0.00011,2]
[334676928,1723464640344,-706.07383781,0.00011,2]
[334676929,1723464640396,-10703.84226724,0.00011,2]
[334676930,1723464640504,-438.21464902,0.00011,2]
[334677175,1723464643280,-355.01159146,0.0001095,2]
[334677179,1723464643292,-5768.03301831,0.0001095,2]
[334677187,1723464644153,-15511.75994955,0.0001095,2]
[334677188,1723464644168,-608.54343559,0.0001095,2]
[334677189,1723464644180,-323.9163485,0.0001095,2]
[334677190,1723464644192,-400.30481951,0.0001095,2]
[334677191,1723464644203,-500.0,0.0001095,2]
[334677194,1723464646427,-2091.0265999,0.0001095,2]
[334677195,1723464646439,-7056.8,0.0001095,2]
[334677196,1723464646483,-349.21525179,0.0001095,2]
[334677197,1723464646495,-635.84286283,0.0001095,2]
[334677198,1723464646506,-98.33345054,0.0001095,2]
[334677199,1723464646515,-401.66654946,0.00011,2]
[334677200,1723464646536,-498.62,0.00011,2]
[334677201,1723464646548,-6009.713436,0.00011,2]
[334677202,1723464646645,-254.75726446,0.00011,2]
[334677203,1723464740096,-150.0,0.00012124,7]
[334677204,1723464740117,-243.250255,0.00012124,7]
[334677205,1723464770478,-400.0,0.000105,3]
[334677206,1723464770499,-800.0,0.000106,3]
[334677207,1723464770522,-1200.0,0.000107,3]
[334677208,1723464770544,-1600.0,0.000108,3]
[334677209,1723464770565,-2000.0,0.000109,3]
[334677210,1723464775418,-428.0,9.67e-05,2]
[334677211,1723464775440,-428.0,9.8e-05,2]
[334677212,1723464775463,-428.0,9.92e-05,2]
[334677213,1723464775486,-428.0,0.0001004,2]
[334677214,1723464775509,-10000.0,0.00010113,2]
[334677215,1723464775531,-428.0,0.0001016,2]
[334677216,1723464775555,-428.0,0.0001029,2]
[334677217,1723464775577,-214.43,0.00010373,2]
[334677218,1723464775600,-428.0,0.0001041,2]
[334677219,1723464775623,-428.0,0.0001053,2]
[334677220,1723464775645,-428.0,0.0001065,2]
[334677221,1723464775666,-428.0,0.0001078,2]
[334677222,1723464775689,-4817.25972046,0.000108,2]
[334677223,1723464775711,-300.0,0.00010899,2]
[334677224,1723464775734,-166.9468012,0.000109,2]
[334677225,1723464775755,-1352.86751202,0.000109,2]
[334677226,1723464775777,-5041.29356632,0.000109,2]
[334677227,1723464777126,-592.50673368,0.000109,2]
[334677228,1723464777275,-428.0,0.000109,2]
[334677229,1723464777297,-442.367864,0.000109,2]
[334677230,1723464777318,-150.0,0.00010999,2]
[334677231,1723464777341,-291993.87514732,0.00011,2]
[334677232,1723464779980,-20000.0,0.00011,2]
[334677233,1723464780503,-20000.0,0.00011,2]
[334677234,1723464780937,-20000.0,0.00011,2]
[334677235,1723464783043,-300.0,0.00010999,2]
[334677236,1723464783070,-19700.0,0.00011,2]
[334677237,1723464783450,-20000.0,0.00011,2]
[334677238,1723464783954,-20000.0,0.00011,2]
[334677239,1723464785152,-20000.0,0.00011,2]
[334677240,1723464814411,339.77327645,8.288e-05,2]
[334677241,1723464818501,-1952.7453,9.957e-05,2]
[334677242,1723464818523,-200.0,0.00010973,2]
[334677243,1723464818547,-1118.65632901,0.00010999,3]
[334677244,1723464818573,-41147.39727099,0.00011,2]
[334677247,1723464838678,272.94628168,8.288e-05,2]
[334677248,1723464845874,3798.45786793,8.288e-05,2]
[334677250,1723464922562,1000.0,0.00027,120]
[334677251,1723464935639,870.76,8.42e-05,2]
[334677252,1723464953681,1000.0,0.00027,120]
[334677253,1723464965632,1000.0,0.00027,120]
[334677257,1723465086048,157.04,8.051e-05,2]
[334677261,1723465442605,858.12,8.219e-05,2]
[334677264,1723465562752,157.04,7.761e-05,2]
[334677322,1723465641900,203.88619749,8.178e-05,2]
[334677360,1723465666225,500.0,9.63e-05,2]
[334677362,1723465718340,179.69,9.624e-05,2]
[334677391,1723465805979,1368.7,9.607e-05,2]
[334677392,1723465808175,10000.0,9.607e-05,2]
[334677413,1723465831489,-300.0,9.662e-05,2]
[334677414,1723465831498,-346.68,9.663e-05,2]
[334677415,1723465831507,-217.43,9.663e-05,2]
[334677416,1723465831517,-2774.99,9.663e-05,2]
[334677418,1723465831526,-166.9,9.663e-05,2]
[334677420,1723465831536,-194.76,9.668e-05,2]
[334677422,1723465831545,-559.19,9.673e-05,2]
[334677423,1723465831555,-1975.9,9.708e-05,2]
[334677424,1723465831565,-250.0,9.734e-05,2]
[334677425,1723465831575,-23900.0,9.78e-05,2]
[334677426,1723465831584,-192.0,9.831e-05,2]
[334677427,1723465831593,-150.0,9.888e-05,2]
[334677428,1723465831604,-200.0,0.00010003,2]
[334677429,1723465831616,-499.99,0.00010003,2]
[334677430,1723465831626,-200.0,0.00010063,2]
[334677431,1723465831635,-159.12,0.00010068,2]
[334677432,1723465831647,-166.24,0.00010072,2]
[334677433,1723465831656,-285.13,0.00010072,2]
[334677434,1723465831666,-243.13,0.00010072,2]
[334677435,1723465831675,-150.0,0.00010195,2]
[334677436,1723465831685,-808.0,0.00010196,2]
[334677437,1723465831694,-16486.56,0.00010196,2]
[334677438,1723465831703,-511.62,0.00010196,2]
[334677439,1723465831713,-3162.62,0.00010214,2]
[334677440,1723465831722,-150.2,0.00010341,2]
[334677441,1723465831732,-150.0,0.00010437,2]
[334677442,1723465831742,-858.12,0.00010472,2]
[334677443,1723465831751,-420.0,0.00010628,2]
[334677444,1723465831761,-166.9,0.00010871,2]
[334677445,1723465831771,-3000.0,0.0001089,2]
[334677446,1723465831781,-150.99,0.00010899,2]
[334677448,1723465831791,-21121.5805,0.000109,2]
[334677450,1723465831800,-406.1783,0.000109,2]
[334677452,1723465831810,-14585.46162833,0.000109,2]
[334677454,1723465831819,-460.11575232,0.000109,2]
[334677457,1723465831830,-250.0,0.00010959,2]
[334677459,1723465831839,-200.0,0.00010973,2]
[334677461,1723465831849,-200.0,0.00010973,2]
[334677462,1723465831861,-200.0,0.00010973,2]
[334677463,1723465831871,-150.0,0.00010986,2]
[334677464,1723465831880,-57364.99109963,0.0001099,3]
[334677466,1723465831891,-531.299999,0.0001099,2]
[334677468,1723465831901,-3191.59685741,0.00010997,2]
[334677470,1723465831913,-4819.72288881,0.00010997,2]
[334677471,1723465831925,-4843.30926104,0.00010997,2]
[334677472,1723465831957,-2282.27771756,0.00010997,2]
[334677473,1723465831966,-318619.03391024,0.00011,2]
[334677474,1723465831976,-1000.0,0.00011,2]
[334677475,1723465831986,-209084.39028228,0.00011,2]
[334677478,1723465832277,-273763.4683759,0.00011,2]
[334677480,1723465832293,-1800.0,0.00011,2]
[334677483,1723465837878,-1544.59791416,0.00010861,2]
[334677484,1723465837889,-1466.43431141,0.00010861,2]
[334677485,1723465837900,-1080.68345125,0.00010861,2]
[334677486,1723465837920,-17664.28432318,0.00010861,2]
[334677487,1723465837930,-189846.22982911,0.00011,2]
[334677489,1723465837967,-777.16020434,0.00011,2]
[334677490,1723465837978,-1014.6173005,0.00011,2]
[334677640,1723465839544,-260.35562799,0.00011,2]
[334677656,1723465839700,-2015.94855758,0.00011,2]
[334677659,1723465839713,-1765.19999999,0.00011,2]
[334677666,1723465839777,-4221.78535098,0.00011,2]
[334677668,1723465839789,-5354.0,0.00011,2]